bitfinex/quotes_BTCUSD_20241215
["timestamp","ask_amount","ask_price","bid_price","bid_amount"]
[1734267187449,0.00033639,102940.0,102930.0,0.93997376]
[1734267187868,0.00033639,102940.0,102930.0,1.01957376]
[1734267188074,0.00033639,102940.0,102930.0,1.03537678]
[1734267188283,0.00033639,102940.0,102930.0,1.209418]
[1734267189354,0.00033639,102940.0,102930.0,3.18016387]
[1734267189561,0.00033639,102940.0,102930.0,3.04295167]
[1734267189787,0.00033639,102940.0,102930.0,2.58693159]
[1734267190237,0.00033639,102940.0,102930.0,1.87664819]
[1734267190443,0.00033639,102940.0,102930.0,2.13756018]
[1734267190666,0.00033639,102940.0,102930.0,2.58682549]
[1734267191090,0.00033639,102940.0,102930.0,2.3259135]
[1734267191368,0.00033639,102940.0,102930.0,1.87664819]
[1734267191572,0.00033639,102940.0,102930.0,1.84267219]
[1734267191799,0.00033639,102940.0,102930.0,1.04957616]
[1734267192025,0.00033639,102940.0,102930.0,1.24402212]
[1734267192233,0.00033639,102940.0,102930.0,1.11357931]
[1734267192472,0.00033639,102940.0,102930.0,0.93971723]
[1734267193598,0.00033639,102940.0,102930.0,1.11357931]
[1734267193827,0.00033639,102940.0,102930.0,1.11366722]
[1734267194046,0.00033639,102940.0,102930.0,0.93974566]
[1734267194257,0.00033639,102940.0,102930.0,0.61882419]
[1734267194470,0.00033639,102940.0,102930.0,0.48838302]
[1734267195136,0.00033639,102940.0,102930.0,0.40142224]
[1734267195348,0.00033639,102940.0,102930.0,0.35142224]
[1734267195562,0.09939042,102940.0,102930.0,0.40142224]
[1734267195775,0.09939042,102940.0,102930.0,0.39923549]
[1734267195982,0.09939042,102940.0,102930.0,0.40142224]
[1734267196192,0.09939042,102940.0,102930.0,0.35142224]
[1734267196417,0.34307742,102940.0,102930.0,0.00493849]
[1734267196833,0.42497742,102940.0,102930.0,0.00493849]
[1734267198101,0.43280354,102940.0,102930.0,0.00493849]
[1734267198976,0.23851654,102940.0,102930.0,0.19924449]
[1734267199199,0.43280354,102940.0,102930.0,0.19924449]
[1734267200240,0.43280354,102940.0,102930.0,0.00493849]
[1734267202308,0.45580354,102940.0,102930.0,0.00493849]
[1734267202729,0.54292005,102940.0,102930.0,0.00493849]
[1734267202928,0.5907333,102940.0,102930.0,0.00493849]
[1734267204400,0.89564108,102940.0,102930.0,0.00493849]
[1734267204661,1.12794108,102940.0,102930.0,0.00493849]
[1734267205463,0.95370806,102940.0,102930.0,0.00493849]
[1734267205688,0.194325,102920.0,102910.0,0.0010671]
[1734267205896,0.29337903,102920.0,102910.0,0.0010671]
[1734267206077,0.29337903,102920.0,102910.0,8.61e-05]
[1734267206568,0.09905403,102920.0,102910.0,0.1944301]
[1734267206963,0.29337903,102920.0,102910.0,0.1944301]
[1734267209034,0.29337903,102920.0,102910.0,8.61e-05]
[1734267209454,0.29337903,102920.0,102910.0,0.1944301]
[1734267209661,0.29337903,102920.0,102910.0,8.61e-05]
[1734267210079,0.34277903,102920.0,102910.0,8.61e-05]
[1734267211054,0.44767903,102920.0,102910.0,8.61e-05]
[1734267211471,0.45758146,102920.0,102910.0,8.61e-05]
[1734267212148,0.50539471,102920.0,102910.0,8.61e-05]
[1734267213642,0.73769471,102920.0,102910.0,8.61e-05]
[1734267216421,0.68988146,102920.0,102910.0,8.61e-05]
[1734267216634,0.73769471,102920.0,102910.0,8.61e-05]
[1734267217263,0.194363,102900.0,102890.0,0.0009874]
[1734267217470,0.29341703,102900.0,102890.0,0.0009874]
[1734267217683,0.56429103,102900.0,102880.0,0.24666185]
[1734267217884,0.09905403,102890.0,102880.0,0.59106285]
[1734267218527,0.09905403,102890.0,102880.0,0.59161016]
[1734267218710,0.09905403,102890.0,102880.0,0.19502241]
[1734267219066,0.29343603,102890.0,102880.0,0.19502241]
[1734267219501,0.09905403,102890.0,102880.0,0.19720916]
[1734267220578,0.09905403,102890.0,102880.0,0.19502241]
[1734267220832,0.09905403,102890.0,102880.0,0.24720916]
[1734267221032,0.2323,102910.0,102900.0,0.194363]
[1734267221182,0.52569803,102910.0,102890.0,0.633118]
[1734267221377,0.52569803,102910.0,102890.0,0.438738]
[1734267221378,0.09905403,102900.0,102890.0,0.438738]
[1734267222726,0.2323,102910.0,102890.0,0.438738]
[1734267222936,0.33135403,102910.0,102900.0,0.194363]
[1734267223775,0.09905403,102910.0,102900.0,0.194363]
[1734267223985,0.09905403,102910.0,102900.0,0.24654975]
[1734267224198,0.09905403,102910.0,102900.0,0.19654975]
[1734267224400,0.09905403,102910.0,102900.0,0.24654975]
[1734267225020,0.09905403,102910.0,102900.0,0.39654975]
[1734267225226,0.00990243,102920.0,102910.0,0.05]
[1734267225432,0.10895646,102920.0,102910.0,0.05]
[1734267225633,0.09905403,102920.0,102910.0,0.244344]
[1734267229132,0.17555403,102920.0,102910.0,0.1944302]
[1734267229307,0.39287903,102920.0,102910.0,8.62e-05]
[1734267231948,0.44069228,102920.0,102910.0,8.62e-05]
[1734267232329,0.46001224,102920.0,102910.0,8.62e-05]
[1734267232918,0.69231224,102920.0,102910.0,8.62e-05]
[1734267235525,0.62149899,102920.0,102910.0,8.62e-05]
[1734267235732,0.66931224,102920.0,102910.0,8.62e-05]
[1734267236837,0.69231224,102920.0,102910.0,8.62e-05]
[1734267238063,0.67299228,102920.0,102910.0,8.62e-05]
[1734267240427,0.67316468,102920.0,102910.0,8.62e-05]
[1734267241263,0.60235143,102920.0,102910.0,8.62e-05]
[1734267241462,0.33152643,102920.0,102910.0,8.62e-05]
[1734267241669,0.52585143,102920.0,102910.0,8.62e-05]
[1734267241866,0.29355143,102920.0,102910.0,8.62e-05]
[1734267242574,0.29355143,102920.0,102910.0,0.1944302]
[1734267243390,0.09922643,102920.0,102910.0,0.1944302]
[1734267243638,0.09922643,102920.0,102910.0,0.2444302]
[1734267245028,0.29355143,102920.0,102910.0,0.1944302]
[1734267245382,0.09922643,102920.0,102910.0,0.1944302]
[1734267245587,0.29355143,102920.0,102910.0,0.1944302]
[1734267246028,0.09922643,102920.0,102910.0,0.1944302]
[1734267247622,0.29355143,102920.0,102910.0,8.62e-05]
[1734267248024,0.09922643,102920.0,102910.0,0.1944302]
[1734267253016,0.09922643,102920.0,102910.0,0.2444302]
[1734267253245,0.07422643,102920.0,102910.0,0.2444302]
[1734267254506,0.0001724,102920.0,102910.0,0.3241302]
[1734267255869,0.0001724,102920.0,102910.0,0.32631695]
[1734267256081,0.0001724,102920.0,102910.0,0.24661695]
[1734267256300,0.09922643,102920.0,102910.0,0.1944302]
[1734267256720,0.29355143,102920.0,102910.0,0.1944302]
[1734267256943,0.29355143,102920.0,102910.0,8.62e-05]
[1734267257162,0.37525143,102920.0,102910.0,8.62e-05]
[1734267258471,0.42515143,102920.0,102910.0,8.62e-05]
[1734267262353,0.51233915,102920.0,102910.0,8.62e-05]
[1734267262961,0.74463915,102920.0,102910.0,8.62e-05]
[1734267263114,0.23082643,102920.0,102910.0,8.62e-05]
[1734267263324,0.34345143,102920.0,102910.0,8.62e-05]
[1734267265375,0.34345143,102920.0,102910.0,0.2444302]
[1734267265376,0.09922643,102920.0,102910.0,0.2444302]
[1734267265590,0.09922643,102920.0,102910.0,0.2394302]
[1734267265998,0.09922643,102920.0,102910.0,0.194344]
[1734267269310,0.10210385,102920.0,102910.0,0.194344]
[1734267270066,0.09922643,102920.0,102910.0,0.2394302]
[1734267270911,0.0001724,102920.0,102910.0,0.24161695]
[1734267271369,0.0001724,102920.0,102910.0,0.194344]
[1734267271580,0.0001724,102920.0,102910.0,0.24161695]
[1734267272852,0.09922643,102920.0,102910.0,0.19653075]
[1734267273687,0.09922643,102920.0,102910.0,0.194344]
[1734267273886,0.09922643,102920.0,102910.0,0.19653075]
[1734267275504,0.09922643,102920.0,102910.0,0.194344]
[1734267275921,0.48788543,102920.0,102900.0,0.41469788]
[1734267276132,0.09905403,102910.0,102900.0,0.28161565]
[1734267276347,0.29339803,102910.0,102900.0,0.344352]
[1734267276765,0.09905403,102910.0,102900.0,0.194352]
[1734267276972,0.29339803,102910.0,102900.0,0.194352]
[1734267277184,0.29339803,102910.0,102890.0,1.10095289]
[1734267277393,0.29339803,102910.0,102890.0,1.42313609]
[1734267277609,0.29339803,102910.0,102900.0,0.194363]
[1734267277824,0.09905403,102910.0,102900.0,0.194363]
[1734267281479,0.09905403,102910.0,102900.0,0.2394492]
[1734267281922,0.10919743,102910.0,102900.0,0.2394492]
[1734267282348,0.0101434,102910.0,102900.0,0.24163595]
[1734267282615,0.0001724,102920.0,102900.0,0.65421053]
[1734267282825,0.09922643,102920.0,102910.0,0.194344]
[1734267283242,0.0001724,102920.0,102910.0,0.2394302]
[1734267283460,0.0001724,102920.0,102910.0,0.3163302]
[1734267283665,0.0001724,102920.0,102910.0,0.40361483]
[1734267285402,0.0001724,102920.0,102910.0,0.32671483]
[1734267285626,0.09922643,102920.0,102910.0,0.28162863]
[1734267285819,0.09922643,102920.0,102910.0,0.194344]
[1734267286676,0.10938792,102920.0,102910.0,0.194344]
[1734267287911,0.10938792,102920.0,102910.0,0.28166221]
[1734267289882,0.10938792,102920.0,102910.0,0.32674841]
[1734267291552,0.10938792,102920.0,102910.0,0.28166221]
[1734267291766,0.10938792,102920.0,102910.0,0.32674841]
[1734267292411,0.10938792,102920.0,102910.0,0.2394302]
[1734267292844,0.10938792,102920.0,102910.0,0.32673459]
[1734267294743,0.10938792,102920.0,102910.0,0.28164839]
[1734267294957,0.10938792,102920.0,102910.0,0.194344]
[1734267296760,0.18438792,102920.0,102910.0,0.194344]
[1734267297514,0.71004733,102920.0,102900.0,0.19662695]
[1734267297774,0.09905403,102910.0,102900.0,0.19662695]
[1734267298459,0.09905403,102910.0,102900.0,0.24171315]
[1734267298940,0.16648026,102920.0,102910.0,0.2394302]
[1734267299198,0.15908792,102920.0,102910.0,0.2394302]
[1734267301368,0.15908792,102920.0,102910.0,0.194344]
[1734267301847,0.15908792,102920.0,102910.0,0.2394302]
[1734267302798,0.15908792,102920.0,102910.0,0.194344]
[1734267303272,0.15908792,102920.0,102910.0,0.2394302]
[1734267304187,0.10938792,102920.0,102910.0,0.2394302]
[1734267305049,0.01033389,102920.0,102910.0,0.2394302]
[1734267305289,0.01033389,102920.0,102910.0,0.3215302]
[1734267305524,0.01033389,102920.0,102910.0,0.41101987]
[1734267306232,0.01033389,102920.0,102910.0,0.56101987]
[1734267306885,0.01033389,102920.0,102910.0,0.69197425]
[1734267307101,0.01033389,102920.0,102910.0,0.56101987]
[1734267307315,0.01033389,102920.0,102910.0,0.69197425]
[1734267307735,0.01033389,102920.0,102910.0,1.01412302]
[1734267308167,0.01033389,102920.0,102910.0,1.18872886]
[1734267309017,0.01033389,102920.0,102910.0,1.40698616]
[1734267310090,0.01033389,102920.0,102910.0,1.45618616]
[1734267310309,0.01033389,102920.0,102910.0,1.48144244]
[1734267310527,0.01033389,102920.0,102910.0,1.45618616]
[1734267310951,0.01033389,102920.0,102910.0,1.45627236]
[1734267313705,0.01033389,102920.0,102910.0,1.23801506]
[1734267317094,0.10938792,102920.0,102910.0,0.32681932]
[1734267317309,0.42871292,102920.0,102910.0,8.62e-05]
[1734267321029,0.23438792,102920.0,102910.0,8.62e-05]
[1734267321294,0.23438792,102920.0,102910.0,0.1944302]
[1734267322161,0.15888792,102920.0,102910.0,0.2395164]
[1734267322381,0.10938792,102920.0,102910.0,0.2395164]
[1734267323233,0.10938792,102920.0,102910.0,0.24170315]
[1734267324538,0.01033389,102920.0,102910.0,0.24170315]
[1734267324768,0.01033389,102920.0,102910.0,0.47020315]
[1734267324993,0.01033389,102920.0,102910.0,0.68826841]
[1734267325220,0.01033389,102920.0,102910.0,1.01015088]
[1734267325441,0.01033389,102920.0,102910.0,1.18460309]
[1734267325654,0.0001724,102920.0,102910.0,1.20985937]
[1734267326929,0.0001724,102920.0,102910.0,1.18460309]
[1734267331198,0.0001724,102920.0,102910.0,1.18437159]
[1734267333599,0.09922643,102920.0,102910.0,1.10587159]
[1734267333823,0.22572643,102920.0,102910.0,0.3444302]
[1734267334024,0.22572643,102920.0,102910.0,0.39170315]
[1734267334448,0.22572643,102920.0,102910.0,0.3895164]
[1734267334650,0.22572643,102920.0,102910.0,0.39170315]
[1734267335634,0.0001724,102920.0,102910.0,0.48666405]
[1734267335843,0.0001724,102920.0,102910.0,0.62521749]
[1734267336040,0.0001724,102920.0,102910.0,0.79958766]
[1734267336271,0.0001724,102920.0,102910.0,1.12141569]
[1734267340528,0.0001724,102920.0,102910.0,1.13112033]
[1734267344235,0.0001724,102920.0,102910.0,1.13063956]
[1734267345123,0.0001724,102920.0,102910.0,1.10538328]
[1734267345344,0.22572643,102920.0,102910.0,0.77894559]
[1734267345572,0.22572643,102920.0,102910.0,0.2395164]
[1734267348119,0.22572643,102920.0,102910.0,0.24170315]
[1734267348359,0.22572643,102920.0,102910.0,0.39170315]
[1734267350877,0.22572643,102920.0,102910.0,0.47890144]
[1734267351355,0.22572643,102920.0,102910.0,0.1944302]
[1734267355401,0.42005143,102920.0,102910.0,8.62e-05]
[1734267355598,0.42005143,102920.0,102900.0,0.3838754]
[1734267355802,0.18065403,102910.0,102900.0,0.58114835]
[1734267356030,0.18065403,102910.0,102900.0,0.53606215]
[1734267356605,0.18065403,102910.0,102900.0,0.58114835]
[1734267357822,0.0485724,102920.0,102910.0,0.0450862]
[1734267358044,0.0485724,102920.0,102910.0,0.24161695]
[1734267360208,0.0001724,102920.0,102910.0,0.39161695]
[1734267361355,0.0001724,102920.0,102910.0,0.4788506]
[1734267362027,0.0001724,102920.0,102910.0,0.60970108]
[1734267362239,0.0001724,102920.0,102910.0,0.9315218]
[1734267363084,0.0001724,102920.0,102910.0,0.39161695]
[1734267363934,0.0001724,102920.0,102910.0,0.93140465]
[1734267365703,0.0001724,102920.0,102910.0,1.1057714]
[1734267366154,0.0001724,102920.0,102910.0,0.93140465]
[1734267366815,0.0001724,102920.0,102910.0,0.60957538]
[1734267367518,0.17462643,102920.0,102910.0,0.60957538]
[1734267367730,0.17462643,102920.0,102910.0,0.34653075]
[1734267370199,0.17462643,102920.0,102910.0,0.15218675]
[1734267370427,0.41545143,102920.0,102910.0,0.15]
[1734267371289,0.0466724,102920.0,102910.0,0.39161695]
[1734267371731,0.0001724,102920.0,102910.0,0.39161695]
[1734267371947,0.0001724,102920.0,102910.0,0.47880032]
[1734267372372,0.0001724,102920.0,102910.0,0.60957538]
[1734267372567,0.0001724,102920.0,102910.0,0.93144586]
[1734267374851,0.0001724,102920.0,102910.0,1.10581261]
[1734267375653,0.0001724,102920.0,102910.0,0.93144586]
[1734267375866,0.0001724,102920.0,102910.0,0.60957538]
[1734267376080,0.0762724,102920.0,102910.0,0.47880032]
[1734267376499,0.0762724,102920.0,102910.0,0.39161695]
[1734267376706,0.0762724,102920.0,102910.0,0.47880032]
[1734267377348,0.22302643,102920.0,102910.0,0.34653075]
[1734267389979,0.14692643,102920.0,102910.0,0.34653075]
[1734267391505,0.14692643,102920.0,102910.0,0.39161695]
[1734267391724,0.09922643,102920.0,102910.0,0.39161695]
[1734267392804,0.09922643,102920.0,102910.0,0.34653075]
[1734267393036,0.17962643,102920.0,102910.0,0.34653075]
[1734267397454,0.18062643,102920.0,102910.0,0.33453075]
[1734267398178,0.17964343,102920.0,102910.0,0.33453075]
[1734267402993,0.0011724,102920.0,102910.0,0.46687761]
[1734267403199,0.0011724,102920.0,102910.0,0.77228992]
[1734267403425,0.0011724,102920.0,102910.0,0.99044157]
[1734267403639,0.0011724,102920.0,102910.0,1.31250721]
[1734267404498,0.0011724,102920.0,102910.0,1.22524655]
[1734267404705,0.0011724,102920.0,102910.0,1.31247871]
[1734267405296,0.0011724,102920.0,102910.0,1.31248143]
[1734267405606,0.0011724,102920.0,102910.0,1.26739523]
[1734267405807,0.0011724,102920.0,102910.0,1.31248143]
[1734267408388,0.0011724,102920.0,102910.0,1.09432978]
[1734267408589,0.0011724,102920.0,102910.0,1.04924358]
[1734267409058,0.0011724,102920.0,102910.0,0.42176563]
[1734267409378,0.0011724,102920.0,102910.0,0.46685183]
[1734267409576,0.0011724,102920.0,102910.0,0.42176563]
[1734267410644,0.0011724,102920.0,102910.0,0.46685183]
[1734267410848,0.0011724,102920.0,102910.0,0.42176563]
[1734267411551,0.0011724,102920.0,102910.0,0.37961695]
[1734267411996,0.10022643,102920.0,102910.0,0.37961695]
[1734267416096,0.10022643,102920.0,102910.0,0.46687222]
[1734267416310,0.10022643,102920.0,102910.0,0.91982941]
[1734267416526,0.10022643,102920.0,102910.0,0.46687222]
[1734267416751,0.10022643,102920.0,102910.0,0.59775512]
[1734267416970,0.0011724,102920.0,102910.0,1.10987351]
[1734267417205,0.0011724,102920.0,102910.0,1.31246004]
[1734267417417,0.0011724,102920.0,102910.0,0.91981133]
[1734267417599,0.0011724,102920.0,102910.0,1.09432187]
[1734267417839,0.0011724,102920.0,102910.0,0.91981133]
[1734267418108,0.0011724,102920.0,102910.0,1.09432187]
[1734267419629,0.10022643,102920.0,102910.0,1.09432187]
[1734267420492,0.10022643,102920.0,102910.0,1.09424572]
[1734267420717,0.0011724,102920.0,102910.0,1.09427567]
[1734267421786,0.0011724,102920.0,102910.0,1.31237887]
[1734267422214,0.0011724,102920.0,102910.0,1.09427567]
[1734267422631,0.0011724,102920.0,102910.0,1.31237887]
[1734267423056,0.0011724,102920.0,102910.0,1.09427567]
[1734267423513,0.0011724,102920.0,102910.0,0.91979311]
[1734267423731,0.0011724,102920.0,102910.0,1.09427567]
[1734267424854,0.0011724,102920.0,102910.0,1.31237887]
[1734267425066,0.0011724,102920.0,102910.0,1.31246507]
[1734267425477,0.0011724,102920.0,102910.0,1.09436187]
[1734267426141,0.0011724,102920.0,102910.0,1.31246507]
[1734267426341,0.0011724,102920.0,102910.0,1.09436187]
[1734267426762,0.0011724,102920.0,102910.0,1.31246507]
[1734267427897,0.0011724,102920.0,102910.0,1.09436187]
[1734267429289,0.0011724,102920.0,102910.0,1.90111343]
[1734267429700,0.0011724,102920.0,102910.0,1.90099939]
[1734267430100,0.0011724,102920.0,102910.0,1.77025151]
[1734267430504,0.0011724,102920.0,102910.0,1.6696522]
[1734267431083,0.0011724,102920.0,102910.0,2.11997193]
[1734267431921,0.0011724,102920.0,102910.0,2.33776478]
[1734267432380,0.0011724,102920.0,102910.0,2.11997193]
[1734267432586,0.0011724,102920.0,102910.0,2.21902596]
[1734267433261,0.0011724,102920.0,102910.0,2.43677439]
[1734267433929,0.0011724,102920.0,102910.0,1.89892878]
[1734267434140,0.0011724,102920.0,102910.0,1.89873725]
[1734267434369,0.0011724,102920.0,102910.0,1.17313098]
[1734267434577,0.0011724,102920.0,102910.0,1.22403933]
[1734267436255,0.62661085,102950.0,102930.0,0.00218675]
[1734267436463,0.09905403,102940.0,102930.0,0.34647975]
[1734267436669,0.09905403,102940.0,102930.0,0.54077675]
[1734267437520,0.09921357,102940.0,102930.0,0.54077675]
[1734267439402,0.22761357,102940.0,102930.0,0.54077675]
[1734267440258,0.00015954,102940.0,102930.0,0.58586295]
[1734267440471,0.00015954,102940.0,102930.0,0.60141459]
[1734267440944,0.00015954,102940.0,102930.0,0.68842545]
[1734267441394,0.00015954,102940.0,102930.0,1.1395506]
[1734267441616,0.00015954,102940.0,102930.0,1.13941965]
[1734267441835,0.00015954,102940.0,102930.0,1.27031965]
[1734267442044,0.00015954,102940.0,102930.0,1.46341206]
[1734267442258,0.00015954,102940.0,102930.0,1.6807093]
[1734267442498,0.00015954,102940.0,102930.0,1.46341206]
[1734267443776,0.00015954,102940.0,102930.0,1.91399882]
[1734267443991,0.00015954,102940.0,102930.0,1.98325344]
[1734267445051,0.0001722,102950.0,102940.0,0.19727295]
[1734267445260,0.0001722,102950.0,102940.0,0.37961625]
[1734267445473,0.0001722,102950.0,102940.0,0.29282459]
[1734267445679,0.0001722,102950.0,102940.0,0.37959628]
[1734267445883,0.0001722,102950.0,102940.0,0.57388328]
[1734267447378,0.0001722,102950.0,102940.0,0.48711159]
[1734267448936,0.0001722,102950.0,102940.0,0.57388328]
[1734267449352,0.0001722,102950.0,102940.0,0.48711159]
[1734267450020,0.22952623,102950.0,102930.0,0.84668124]
[1734267450234,0.09905403,102940.0,102930.0,0.24173749]
[1734267450444,0.09905403,102940.0,102930.0,0.00234629]
[1734267450648,0.29334103,102940.0,102930.0,0.00234629]
[1734267451106,0.37454103,102940.0,102930.0,0.00015954]
[1734267456330,0.38449847,102940.0,102930.0,0.00015954]
[1734267460330,0.00995744,102940.0,102930.0,0.00015954]
[1734267460539,0.00995744,102940.0,102930.0,0.25969513]
[1734267460749,0.0001722,102950.0,102940.0,0.194287]
[1734267460954,0.09922623,102950.0,102940.0,0.194287]
[1734267464391,0.09922623,102950.0,102940.0,0.271087]
[1734267464642,0.10922778,102950.0,102940.0,0.271087]
[1734267465316,0.01017375,102950.0,102940.0,0.31835995]
[1734267465524,0.01017375,102950.0,102940.0,0.34264595]
[1734267466342,0.01017375,102950.0,102940.0,0.49264595]
[1734267466786,0.03317375,102950.0,102940.0,0.49264595]
[1734267467196,0.0231722,102950.0,102940.0,0.49264595]
[1734267467399,0.0001722,102950.0,102940.0,0.49264595]
[1734267468219,0.0001722,102950.0,102940.0,0.53542464]
[1734267470275,0.0001722,102950.0,102940.0,0.51184474]
[1734267476324,0.0001722,102950.0,102940.0,0.49264595]
[1734267476561,0.0001722,102950.0,102940.0,0.41584595]
[1734267483012,0.0001722,102950.0,102940.0,0.44204023]
[1734267483870,0.0001722,102950.0,102940.0,0.52252643]
[1734267484089,0.0001722,102950.0,102940.0,0.47633215]
[1734267486730,0.0001722,102950.0,102940.0,0.39593215]
[1734267487620,0.0480722,102950.0,102940.0,0.39593215]
[1734267493468,0.0001722,102950.0,102940.0,0.39593215]
[1734267501737,0.0001722,102950.0,102940.0,0.35084595]
[1734267501945,0.12222623,102950.0,102940.0,0.1986592]
[1734267502151,0.25122623,102950.0,102940.0,0.0243722]
[1734267502362,0.44549523,102950.0,102940.0,0.0243722]
[1734267502595,0.25122623,102950.0,102940.0,0.2186592]
[1734267502814,0.44549523,102950.0,102940.0,0.0243722]
[1734267504500,0.45040903,102950.0,102940.0,0.0243722]
[1734267504709,0.53761403,102950.0,102940.0,0.0243722]
[1734267505152,0.66842153,102950.0,102940.0,0.0243722]
[1734267507133,0.84283153,102950.0,102940.0,0.0243722]
[1734267508945,0.66842153,102950.0,102940.0,0.0243722]
[1734267510316,0.53761403,102950.0,102940.0,0.0243722]
[1734267510845,0.25583123,102950.0,102940.0,0.2186592]
[1734267511043,0.14562623,102950.0,102940.0,0.2186592]
[1734267512282,0.16862623,102950.0,102940.0,0.2186592]
[1734267513125,0.44589523,102950.0,102940.0,0.0243722]
[1734267513331,0.45080903,102950.0,102940.0,0.0243722]
[1734267514582,0.53797279,102950.0,102940.0,0.0243722]
[1734267514759,0.66871844,102950.0,102940.0,0.0243722]
[1734267515830,0.53797279,102950.0,102940.0,0.0243722]
[1734267517407,0.53796135,102950.0,102940.0,0.0243722]
[1734267521126,0.45080903,102950.0,102940.0,0.0243722]
[1734267522060,0.53796135,102950.0,102940.0,0.0243722]
[1734267524494,0.67159298,102950.0,102940.0,0.0243722]
[1734267526329,0.45371218,102950.0,102940.0,0.0243722]
[1734267526533,0.67155248,102950.0,102940.0,0.0243722]
[1734267527491,0.90385248,102950.0,102940.0,0.0243722]
[1734267530990,0.90385243,102950.0,102940.0,0.0243722]
[1734267531413,1.07812463,102950.0,102940.0,0.0243722]
[1734267533658,1.12593788,102950.0,102940.0,0.0243722]
[1734267535553,0.023,102940.0,102930.0,0.00024574]
[1734267535769,0.32125483,102940.0,102930.0,0.00024574]
[1734267536621,0.55355483,102940.0,102930.0,0.00024574]
[1734267537525,0.64071025,102940.0,102930.0,0.00024574]
[1734267538061,0.77144339,102940.0,102930.0,0.00024574]
[1734267538532,0.77144339,102940.0,102920.0,0.0009807]
[1734267538533,0.217306,102930.0,102920.0,0.0009807]
[1734267538755,0.40842925,102930.0,102920.0,0.0009807]
[1734267538979,0.217325,102920.0,102910.0,8.62e-05]
[1734267539135,0.31637903,102920.0,102910.0,8.62e-05]
[1734267542905,0.34068652,102920.0,102910.0,8.62e-05]
[1734267543109,0.70524567,102920.0,102910.0,8.62e-05]
[1734267543316,0.24215725,102910.0,102900.0,0.0010739]
[1734267543522,0.023,102890.0,102880.0,0.0765861]
[1734267543728,0.31643603,102890.0,102880.0,0.0765861]
[1734267544924,0.31643603,102890.0,102880.0,0.07713341]
[1734267545341,0.44204983,102890.0,102880.0,0.00063341]
[1734267548045,0.43713603,102890.0,102880.0,0.00063341]
[1734267548249,0.36644983,102890.0,102880.0,0.00063341]
[1734267548453,0.59874983,102890.0,102880.0,0.00063341]
[1734267549618,0.194401,102880.0,102870.0,0.0765862]
[1734267549876,0.194401,102880.0,102870.0,8.62e-05]
[1734267549877,0.31645503,102880.0,102870.0,8.62e-05]
[1734267550076,0.60148208,102880.0,102870.0,8.62e-05]
[1734267550463,0.60148208,102880.0,102860.0,0.0009932]
[1734267550464,0.21742,102870.0,102860.0,0.0009932]
[1734267550672,0.31647403,102870.0,102860.0,0.0009932]
[1734267550854,0.194439,102860.0,102850.0,0.0765]
[1734267551030,0.31649303,102860.0,102850.0,0.0765]
[1734267552545,0.217457,102850.0,102840.0,0.09270209]
[1734267552751,0.31651103,102850.0,102840.0,0.09270209]
[1734267552950,0.31651103,102850.0,102840.0,0.0765]
[1734267553302,0.217476,102840.0,102830.0,8.62e-05]
[1734267553544,0.31653003,102840.0,102830.0,8.62e-05]
[1734267553958,0.31653003,102840.0,102830.0,0.00014085]
[1734267554375,0.60155708,102840.0,102830.0,0.00014085]
[1734267554578,0.68185708,102840.0,102830.0,0.00014085]
[1734267554984,0.4547088,102830.0,102820.0,8.64e-05]
[1734267555194,0.55376283,102830.0,102820.0,0.00014118]
[1734267555404,0.54884903,102830.0,102820.0,0.00014118]
[1734267556686,0.59714903,102830.0,102820.0,0.00014118]
[1734267557126,0.217533,102810.0,102800.0,0.0510727]
[1734267557327,0.32150083,102810.0,102800.0,0.0510727]
[1734267557564,0.32150083,102810.0,102800.0,0.0500862]
[1734267558391,0.31658703,102810.0,102800.0,0.0500862]
[1734267559622,0.32150083,102810.0,102800.0,0.0500862]
[1734267560038,0.31658703,102810.0,102800.0,0.0500862]
[1734267561248,0.12205403,102810.0,102800.0,0.0500862]
[1734267561458,0.09905403,102810.0,102800.0,0.34917669]
[1734267561665,0.09905403,102810.0,102800.0,0.39877669]
[1734267562217,0.09905403,102810.0,102800.0,0.3707382]
[1734267562831,0.12205403,102810.0,102800.0,0.3707382]
[1734267563189,0.12205403,102810.0,102800.0,0.20178675]
[1734267563449,0.02316416,102830.0,102820.0,0.194514]
[1734267563640,0.09921819,102830.0,102820.0,0.194514]
[1734267564826,0.1091066,102830.0,102820.0,0.194514]
[1734267565459,0.1321066,102830.0,102820.0,0.194514]
[1734267566277,0.1091066,102830.0,102820.0,0.3225002]
[1734267567613,0.1321066,102830.0,102820.0,0.3225002]
[1734267569316,0.1091066,102830.0,102820.0,0.3225002]
[1734267569712,0.00016416,102830.0,102820.0,0.53762683]
[1734267569928,0.00016416,102830.0,102820.0,0.52378695]
[1734267572101,0.00016416,102830.0,102820.0,0.52819072]
[1734267577185,0.00016416,102830.0,102820.0,0.47909072]
[1734267577759,0.12221819,102830.0,102820.0,0.19891777]
[1734267578154,0.31671319,102830.0,102820.0,0.19891777]
[1734267578638,0.31671319,102830.0,102820.0,0.00440377]
[1734267580014,0.12221819,102830.0,102820.0,0.19891777]
[1734267580802,0.12221819,102830.0,102820.0,0.24400397]
[1734267583250,0.12221819,102830.0,102820.0,0.32190397]
[1734267583251,0.00016416,102830.0,102820.0,0.32190397]
[1734267585385,0.00016416,102830.0,102820.0,0.47409072]
[1734267586661,0.00016416,102830.0,102820.0,0.52159072]
[1734267588657,0.00016416,102830.0,102820.0,0.52379866]
[1734267589693,0.00016416,102830.0,102820.0,0.67285269]
[1734267589887,0.0001726,102840.0,102830.0,0.2729862]
[1734267590103,0.0001726,102840.0,102830.0,2.42076095]
[1734267590299,0.0001726,102840.0,102830.0,2.5611504]
[1734267590504,0.0001726,102840.0,102830.0,1.9178874]
[1734267590863,0.0001726,102840.0,102830.0,2.04746274]
[1734267591035,0.0001726,102840.0,102830.0,1.9178874]
[1734267591395,0.0001726,102840.0,102830.0,2.71262569]
[1734267591645,0.0001726,102840.0,102830.0,2.68948407]
[1734267591845,0.0001726,102840.0,102830.0,2.42130764]
[1734267592196,0.0001726,102840.0,102830.0,0.61021895]
[1734267592620,0.0001726,102840.0,102830.0,0.52367384]
[1734267594215,0.0001726,102840.0,102830.0,3.9799502]
[1734267594396,0.0001726,102840.0,102830.0,4.49454207]
[1734267594784,0.0001726,102840.0,102830.0,3.90081196]
[1734267595983,0.0001726,102840.0,102830.0,3.900946]
[1734267596551,0.0001726,102840.0,102830.0,3.98750102]
[1734267596762,6e-07,102840.0,102830.0,3.98750102]
[1734267596870,6e-07,102840.0,102830.0,1.45568298]
[1734267597073,6e-07,102840.0,102830.0,1.58550994]
[1734267597322,6e-07,102840.0,102830.0,1.45568298]
[1734267597522,0.01002812,102870.0,102860.0,0.46821195]
[1734267597680,0.023,102880.0,102870.0,0.0450862]
[1734267597874,0.023,102880.0,102870.0,0.39167695]
[1734267597875,0.12205403,102880.0,102870.0,0.39167695]
[1734267598076,0.12205403,102880.0,102870.0,0.58609095]
[1734267598283,0.12205403,102880.0,102870.0,0.5903753]
[1734267598691,0.12221855,102880.0,102870.0,0.5903753]
[1734267598890,0.00016452,102880.0,102870.0,0.5903753]
[1734267604692,0.30483346,102900.0,102880.0,0.194401]
[1734267604906,0.00054819,102890.0,102880.0,0.39165795]